[Event "*** Titled Tuesday Blitz"]
[Site "Chess.com"]
[Date "2021.03.02"]
[Round "1"]
[White "davigator"]
[Black "Lagmantr"]
[Result "0-1"]
[WhiteElo "2395"]
[BlackElo "2729"]
[TimeControl "180+1"]
[EndTime "10:07:39 PST"]
[Termination "Lagmantr won by resignation"]

1. e4 {[%clk 0:03:00.9]} 1... Nc6 {[%clk 0:03:00.1]} 2. Bb5 {[%clk 0:02:56.5]}
2... a6 {[%clk 0:02:58.1]} 3. Ba4 {[%clk 0:02:53.5]} 3... b5 {[%clk 0:02:57.5]}
4. Bb3 {[%clk 0:02:53.4]} 4... Na5 {[%clk 0:02:56.5]} 5. d4 {[%clk 0:02:52.7]}
5... Nxb3 {[%clk 0:02:56]} 6. axb3 {[%clk 0:02:52.7]} 6... Bb7 {[%clk
0:02:56.4]} 7. Qe2 {[%clk 0:02:45.7]} 7... d6 {[%clk 0:02:54]} 8. Nf3 {[%clk
0:02:43.9]} 8... g6 {[%clk 0:02:54.2]} 9. Bg5 {[%clk 0:02:40.7]} 9... Bg7 {[%clk
0:02:51.5]} 10. c3 {[%clk 0:02:39.7]} 10... h6 {[%clk 0:02:48.7]} 11. Bh4 {[%clk
0:02:37.3]} 11... Nf6 {[%clk 0:02:49.1]} 12. Nbd2 {[%clk 0:02:36.2]} 12... O-O
{[%clk 0:02:48.6]} 13. O-O {[%clk 0:02:35.6]} 13... Nh5 {[%clk 0:02:48.4]} 14.
Qe3 {[%clk 0:02:29.2]} 14... g5 {[%clk 0:02:36.4]} 15. Bg3 {[%clk 0:02:27.8]}
15... Nxg3 {[%clk 0:02:36.5]} 16. hxg3 {[%clk 0:02:21.5]} 16... Qd7 {[%clk
0:02:36.1]} 17. b4 {[%clk 0:02:19.5]} 17... Rae8 {[%clk 0:02:33.2]} 18. Nb3
{[%clk 0:02:18.9]} 18... f5 {[%clk 0:02:29.9]} 19. exf5 {[%clk 0:02:18.4]} 19...
Qxf5 {[%clk 0:02:29]} 20. Na5 {[%clk 0:02:17.5]} 20... Bd5 {[%clk 0:02:19.1]}
21. Rad1 {[%clk 0:02:07.3]} 21... Rf7 {[%clk 0:02:11.1]} 22. b3 {[%clk 0:02:05]}
22... g4 {[%clk 0:01:53.4]} 23. Nh4 {[%clk 0:01:56]} 23... Qh5 {[%clk
0:01:53.2]} 24. c4 {[%clk 0:01:48.7]} 24... Ba8 {[%clk 0:01:52.4]} 25. d5 {[%clk
0:01:45.5]} 25... Bf6 {[%clk 0:01:46.5]} 26. Rfe1 {[%clk 0:01:29]} 26... Bxh4
{[%clk 0:01:45.7]} 27. gxh4 {[%clk 0:01:29.1]} 27... Qxh4 {[%clk 0:01:46.6]} 28.
Rd4 {[%clk 0:01:28.8]} 28... Ref8 {[%clk 0:01:41.9]} 29. Re2 {[%clk 0:01:27.5]}
29... h5 {[%clk 0:01:38.4]} 30. Re4 {[%clk 0:01:22.9]} 30... g3 {[%clk
0:01:11.2]} 31. Qxg3+ {[%clk 0:01:19.9]} 31... Qxg3 {[%clk 0:01:11.2]} 32. fxg3
{[%clk 0:01:19.5]} 32... Rf1+ {[%clk 0:01:11.3]} 33. Kh2 {[%clk 0:01:19.2]}
33... e5 {[%clk 0:01:11.9]} 34. Rh4 {[%clk 0:01:15]} 34... R8f5 {[%clk
0:01:09.6]} 35. g4 {[%clk 0:01:15.3]} 35... hxg4 {[%clk 0:01:09.8]} 36. Rxg4+
{[%clk 0:01:16.1]} 36... Kf7 {[%clk 0:01:10.2]} 37. Kg3 {[%clk 0:01:16.5]} 37...
bxc4 {[%clk 0:01:07.7]} 38. bxc4 {[%clk 0:01:16]} 38... Rb1 {[%clk 0:01:07.6]}
39. Rh4 {[%clk 0:01:11.1]} 39... Rg5+ {[%clk 0:01:05.6]} 40. Kh2 {[%clk
0:01:10.4]} 40... Rxb4 {[%clk 0:01:03.5]} 41. Rh7+ {[%clk 0:01:09.6]} 41... Rg7
{[%clk 0:01:02]} 42. Rf2+ {[%clk 0:01:09.7]} 42... Kg8 {[%clk 0:01:02]} 43. Rh3
{[%clk 0:00:54.5]} 43... Ra4 {[%clk 0:01:01.7]} 44. Rb3 {[%clk 0:00:53.6]} 44...
Bxd5 {[%clk 0:00:55.1]} 45. cxd5 {[%clk 0:00:50.7]} 45... Rxa5 {[%clk
0:00:55.2]} 46. Rd2 {[%clk 0:00:49.5]} 46... Rb5 {[%clk 0:00:53.3]} 47. Rc3
{[%clk 0:00:49.5]} 47... a5 {[%clk 0:00:52.7]} 48. Kh3 {[%clk 0:00:49.8]} 48...
a4 {[%clk 0:00:51.7]} 49. Rdd3 {[%clk 0:00:47.1]} 49... Ra5 {[%clk 0:00:51.5]}
50. Ra3 {[%clk 0:00:46.3]} 50... e4 {[%clk 0:00:51.6]} 51. Re3 {[%clk
0:00:45.6]} 51... Re7 {[%clk 0:00:51]} 52. g4 {[%clk 0:00:43.1]} 52... Rxd5
{[%clk 0:00:50.8]} 53. Rxa4 {[%clk 0:00:41.9]} 53... Rd3 {[%clk 0:00:51.4]} 54.
Rxd3 {[%clk 0:00:39.9]} 54... exd3 {[%clk 0:00:52.3]} 55. Rd4 {[%clk 0:00:40]}
55... Re3+ {[%clk 0:00:52.3]} 56. Kh4 {[%clk 0:00:39.6]} 56... Kf7 {[%clk
0:00:52.9]} 57. Kg5 {[%clk 0:00:39.2]} 57... Ke6 {[%clk 0:00:52.5]} 58. Kf4
{[%clk 0:00:40.1]} 58... Rh3 {[%clk 0:00:52.3]} 59. g5 {[%clk 0:00:39.3]} 59...
c5 {[%clk 0:00:50.7]} 60. Re4+ {[%clk 0:00:38.4]} 60... Kd5 {[%clk 0:00:50.8]}
61. Re1 {[%clk 0:00:38.9]} 61... c4 {[%clk 0:00:46.2]} 62. g6 {[%clk 0:00:38.8]}
62... Rh8 {[%clk 0:00:46.4]} 63. g7 {[%clk 0:00:34.5]} 63... Rg8 {[%clk
0:00:45.8]} 64. Rg1 {[%clk 0:00:35]} 64... Kd4 {[%clk 0:00:45.5]} 65. Kf3 {[%clk
0:00:35]} 65... Kc3 {[%clk 0:00:44.8]} 66. Ke3 {[%clk 0:00:34]} 66... d2 {[%clk
0:00:44.2]} 67. Rd1 {[%clk 0:00:32.8]} 67... Rxg7 {[%clk 0:00:44.3]} 0-1

[Event "*** Titled Tuesday Blitz"]
[Site "Chess.com"]
[Date "2021.03.02"]
[Round "1"]
[White "verdest"]
[Black "dhaessel"]
[Result "1-0"]
[WhiteElo "2483"]
[BlackElo "1943"]
[TimeControl "180+1"]
[EndTime "10:07:39 PST"]
[Termination "verdest won on time"]

1. d4 {[%clk 0:03:00.4]} 1... Nf6 {[%clk 0:02:59.3]} 2. c4 {[%clk 0:02:59.8]}
2... g6 {[%clk 0:02:59.3]} 3. g3 {[%clk 0:02:59.6]} 3... c6 {[%clk 0:02:58]} 4.
Bg2 {[%clk 0:02:59.4]} 4... d5 {[%clk 0:02:55.7]} 5. Qa4 {[%clk 0:02:59.1]} 5...
Nfd7 {[%clk 0:02:44]} 6. cxd5 {[%clk 0:02:58.7]} 6... Nb6 {[%clk 0:02:43.3]} 7.
Qd1 {[%clk 0:02:59]} 7... cxd5 {[%clk 0:02:41.7]} 8. Nc3 {[%clk 0:02:59.4]} 8...
Bg7 {[%clk 0:02:40.6]} 9. e3 {[%clk 0:02:58.9]} 9... O-O {[%clk 0:02:39.4]} 10.
Nge2 {[%clk 0:02:59.2]} 10... Nc6 {[%clk 0:02:39]} 11. O-O {[%clk 0:02:59.1]}
11... Bf5 {[%clk 0:02:27.4]} 12. b3 {[%clk 0:02:46.9]} 12... a5 {[%clk
0:02:02.9]} 13. Bb2 {[%clk 0:02:30.9]} 13... Qd7 {[%clk 0:01:54.6]} 14. Nf4
{[%clk 0:02:26.3]} 14... Nb4 {[%clk 0:01:30.6]} 15. Rc1 {[%clk 0:02:17.4]} 15...
g5 {[%clk 0:01:17.9]} 16. Nh5 {[%clk 0:02:06.8]} 16... Nd3 {[%clk 0:01:16.2]}
17. Nxg7 {[%clk 0:01:52.4]} 17... Nxb2 {[%clk 0:01:14.6]} 18. Qd2 {[%clk
0:01:47.1]} 18... N2c4 {[%clk 0:01:05]} 19. bxc4 {[%clk 0:01:45.7]} 19... Nxc4
{[%clk 0:01:04.9]} 20. Qe2 {[%clk 0:01:44.2]} 20... Kxg7 {[%clk 0:01:03.2]} 21.
Nxd5 {[%clk 0:01:43.6]} 21... b5 {[%clk 0:00:42.8]} 22. Rxc4 {[%clk 0:01:30.5]}
22... bxc4 {[%clk 0:00:42.7]} 23. Nb6 {[%clk 0:01:28.7]} 23... Qa7 {[%clk
0:00:39.3]} 24. Nxa8 {[%clk 0:01:26.5]} 24... Bd3 {[%clk 0:00:34.5]} 25. Qg4
{[%clk 0:01:18.5]} 25... Bxf1 {[%clk 0:00:33.1]} 26. Qxg5+ {[%clk 0:01:16.5]}
26... Kh8 {[%clk 0:00:33.5]} 27. Kxf1 {[%clk 0:01:12.9]} 27... Rxa8 {[%clk
0:00:32.4]} 28. Bxa8 {[%clk 0:01:09.7]} 28... Qxa8 {[%clk 0:00:32.5]} 29. Qe5+
{[%clk 0:01:07]} 29... Kg8 {[%clk 0:00:29.7]} 30. Ke2 {[%clk 0:01:02.6]} 30...
Qb7 {[%clk 0:00:24.5]} 31. d5 {[%clk 0:00:55.1]} 31... Qb1 {[%clk 0:00:18.4]}
32. Qxe7 {[%clk 0:00:41.4]} 32... Qd3+ {[%clk 0:00:17]} 33. Kf3 {[%clk
0:00:41.4]} 33... Qxd5+ {[%clk 0:00:17]} 34. Qe4 {[%clk 0:00:41.1]} 34... Qd1+
{[%clk 0:00:15.5]} 35. Kf4 {[%clk 0:00:37.6]} 35... c3 {[%clk 0:00:15]} 36. Qe8+
{[%clk 0:00:37.6]} 36... Kg7 {[%clk 0:00:13.2]} 37. Qe5+ {[%clk 0:00:38.2]}
37... f6 {[%clk 0:00:12.3]} 38. Qxc3 {[%clk 0:00:38.5]} 38... Qd6+ {[%clk
0:00:10.5]} 39. Kf3 {[%clk 0:00:37.9]} 39... Qd5+ {[%clk 0:00:10.7]} 40. e4
{[%clk 0:00:37.2]} 40... Qxa2 {[%clk 0:00:10.5]} 41. h4 {[%clk 0:00:23.6]} 41...
a4 {[%clk 0:00:10.6]} 42. Qc7+ {[%clk 0:00:23.3]} 42... Kg8 {[%clk 0:00:07.6]}
43. Qd8+ {[%clk 0:00:21.7]} 43... Kg7 {[%clk 0:00:07.3]} 44. Qd7+ {[%clk
0:00:21.6]} 44... Qf7 {[%clk 0:00:06.6]} 45. Qxa4 {[%clk 0:00:20.9]} 45... f5
{[%clk 0:00:05.3]} 46. Qd4+ {[%clk 0:00:20]} 46... Kg8 {[%clk 0:00:04.3]} 47. e5
{[%clk 0:00:20.1]} 47... Qe6 {[%clk 0:00:02]} 48. Qd8+ {[%clk 0:00:19.3]} 48...
Kg7 {[%clk 0:00:01.1]} 49. Qf6+ {[%clk 0:00:19.4]} 1-0

[Event "*** Titled Tuesday Blitz"]
[Site "Chess.com"]
[Date "2021.03.02"]
[Round "1"]
[White "BogdanDeac"]
[Black "Babujj"]
[Result "1-0"]
[WhiteElo "2986"]
[BlackElo "2469"]
[TimeControl "180+1"]
[EndTime "10:07:40 PST"]
[Termination "BogdanDeac won by resignation"]

1. b3 {[%clk 0:02:55.8]} 1... e5 {[%clk 0:02:58.7]} 2. Bb2 {[%clk 0:02:55]} 2...
Nc6 {[%clk 0:02:58.5]} 3. e3 {[%clk 0:02:55.3]} 3... Nf6 {[%clk 0:02:58.1]} 4.
Bb5 {[%clk 0:02:54.6]} 4... d6 {[%clk 0:02:43.3]} 5. Ne2 {[%clk 0:02:48.6]} 5...
g6 {[%clk 0:02:42.9]} 6. d4 {[%clk 0:02:27.7]} 6... exd4 {[%clk 0:02:17.7]} 7.
Nxd4 {[%clk 0:01:55.6]} 7... Bd7 {[%clk 0:01:58.5]} 8. Nxc6 {[%clk 0:01:27.5]}
8... bxc6 {[%clk 0:01:49.1]} 9. Qf3 {[%clk 0:01:25.9]} 9... Bg7 {[%clk
0:01:25.5]} 10. Bxc6 {[%clk 0:01:24.4]} 10... Bxc6 {[%clk 0:01:24.9]} 11. Qxc6+
{[%clk 0:01:23.6]} 11... Kf8 {[%clk 0:01:25.6]} 12. Qf3 {[%clk 0:01:11.5]} 12...
h5 {[%clk 0:01:21.2]} 13. h3 {[%clk 0:01:09.8]} 13... a5 {[%clk 0:00:58.8]} 14.
Nc3 {[%clk 0:01:04.7]} 14... Rb8 {[%clk 0:00:50.1]} 15. O-O-O {[%clk 0:01:01.1]}
15... Qe7 {[%clk 0:00:40.1]} 16. Qc6 {[%clk 0:00:53.7]} 16... Kg8 {[%clk
0:00:25.6]} 17. Rd4 {[%clk 0:00:44.4]} 17... Nd7 {[%clk 0:00:22.1]} 18. Re4
{[%clk 0:00:25.1]} 18... Ne5 {[%clk 0:00:20.6]} 19. Qa4 {[%clk 0:00:20.5]} 19...
Qg5 {[%clk 0:00:12.6]} 20. Rg1 {[%clk 0:00:12]} 20... Qf5 {[%clk 0:00:10.8]} 21.
Rf4 {[%clk 0:00:10.8]} 21... Qe6 {[%clk 0:00:10]} 22. Rd1 {[%clk 0:00:10.6]}
22... Kh7 {[%clk 0:00:10.1]} 23. Qxa5 {[%clk 0:00:08.4]} 23... Ra8 {[%clk
0:00:09.5]} 24. Qd5 {[%clk 0:00:08.5]} 24... Qxd5 {[%clk 0:00:07.5]} 25. Rxd5
{[%clk 0:00:08]} 25... Rhb8 {[%clk 0:00:06]} 26. a4 {[%clk 0:00:07.6]} 26... Nd7
{[%clk 0:00:06.3]} 27. Rd1 {[%clk 0:00:07]} 27... Kg8 {[%clk 0:00:06.2]} 28. Nd5
{[%clk 0:00:06.8]} 28... Rb7 {[%clk 0:00:05.9]} 29. Bxg7 {[%clk 0:00:06]} 29...
Kxg7 {[%clk 0:00:06.8]} 30. Rc4 {[%clk 0:00:06.5]} 30... Nc5 {[%clk 0:00:07.1]}
31. Nc3 {[%clk 0:00:05.8]} 31... f6 {[%clk 0:00:05.8]} 32. e4 {[%clk 0:00:05.9]}
32... Re8 {[%clk 0:00:05.4]} 33. f3 {[%clk 0:00:05.3]} 33... f5 {[%clk 0:00:04]}
34. exf5 {[%clk 0:00:05]} 34... gxf5 {[%clk 0:00:04.9]} 35. Rf4 {[%clk
0:00:04.4]} 35... Kg6 {[%clk 0:00:04.6]} 36. g4 {[%clk 0:00:03.7]} 36... hxg4
{[%clk 0:00:04.6]} 37. hxg4 {[%clk 0:00:04.1]} 37... fxg4 {[%clk 0:00:05.5]} 38.
Rxg4+ {[%clk 0:00:04.4]} 38... Kf5 {[%clk 0:00:06.1]} 39. Kd2 {[%clk 0:00:04.7]}
39... Ne6 {[%clk 0:00:05.8]} 40. Re1 {[%clk 0:00:04.5]} 40... Rf8 {[%clk
0:00:05.8]} 41. Nd5 {[%clk 0:00:04.8]} 41... Nc5 {[%clk 0:00:03.7]} 42. Rf4+
{[%clk 0:00:04.7]} 1-0

[Event "*** Titled Tuesday Blitz"]
[Site "Chess.com"]
[Date "2021.03.02"]
[Round "1"]
[White "Atco84"]
[Black "VladimirBelous"]
[Result "1-0"]
[WhiteElo "2421"]
[BlackElo "2742"]
[TimeControl "180+1"]
[EndTime "10:07:42 PST"]
[Termination "Atco84 won by resignation"]

1. b3 {[%clk 0:03:00.8]} 1... Nf6 {[%clk 0:02:59.4]} 2. Bb2 {[%clk 0:03:00.7]}
2... Nc6 {[%clk 0:02:59.4]} 3. Nf3 {[%clk 0:03:00.4]} 3... d5 {[%clk 0:02:57.1]}
4. d4 {[%clk 0:03:00.2]} 4... Bf5 {[%clk 0:02:56.1]} 5. e3 {[%clk 0:02:59.3]}
5... e6 {[%clk 0:02:56.2]} 6. Bd3 {[%clk 0:02:58.4]} 6... Ne4 {[%clk 0:02:54.4]}
7. a3 {[%clk 0:02:56.3]} 7... Be7 {[%clk 0:02:49.8]} 8. c4 {[%clk 0:02:52.3]}
8... O-O {[%clk 0:02:50.2]} 9. Qc2 {[%clk 0:02:46.7]} 9... Bg6 {[%clk
0:02:46.6]} 10. h4 {[%clk 0:02:24.4]} 10... f5 {[%clk 0:02:27.6]} 11. h5 {[%clk
0:02:21.1]} 11... Bf7 {[%clk 0:02:28.1]} 12. Nbd2 {[%clk 0:02:20]} 12... Bf6
{[%clk 0:02:25.3]} 13. Ne5 {[%clk 0:02:12.1]} 13... Nxe5 {[%clk 0:02:17.6]} 14.
dxe5 {[%clk 0:02:11.5]} 14... Be7 {[%clk 0:02:18]} 15. cxd5 {[%clk 0:02:07]}
15... exd5 {[%clk 0:02:06.2]} 16. h6 {[%clk 0:01:59.4]} 16... gxh6 {[%clk
0:02:03]} 17. Rxh6 {[%clk 0:01:38.9]} 17... c5 {[%clk 0:02:02.5]} 18. e6 {[%clk
0:01:12.9]} 18... Bg6 {[%clk 0:02:02.4]} 19. Nf3 {[%clk 0:01:06.1]} 19... c4
{[%clk 0:01:52.6]} 20. bxc4 {[%clk 0:01:01.8]} 20... dxc4 {[%clk 0:01:53.5]} 21.
Bxe4 {[%clk 0:00:41.4]} 21... fxe4 {[%clk 0:01:54.4]} 22. Ne5 {[%clk 0:00:30.6]}
22... c3 {[%clk 0:01:54.1]} 23. Nxg6 {[%clk 0:00:20.1]} 23... cxb2 {[%clk
0:01:43.5]} 24. Nxe7+ {[%clk 0:00:17.9]} 24... Qxe7 {[%clk 0:01:44.4]} 25. Qxb2
{[%clk 0:00:17.8]} 25... Qg5 {[%clk 0:01:39.7]} 26. Rh3 {[%clk 0:00:16.2]} 26...
Qf6 {[%clk 0:01:17.4]} 27. Rg3+ {[%clk 0:00:15.2]} 27... Kh8 {[%clk 0:01:17.8]}
28. Rb1 {[%clk 0:00:15.7]} 28... b6 {[%clk 0:01:15.9]} 29. e7 {[%clk 0:00:15.6]}
29... Rf7 {[%clk 0:01:14.9]} 30. Qxf6+ {[%clk 0:00:14.5]} 30... Rxf6 {[%clk
0:01:15.1]} 31. Rb4 {[%clk 0:00:14.1]} 31... Re6 {[%clk 0:01:14.8]} 32. Rg4
{[%clk 0:00:14.3]} 32... Rxe7 {[%clk 0:01:12.8]} 33. Rbxe4 {[%clk 0:00:15.2]}
33... Rxe4 {[%clk 0:01:07.4]} 34. Rxe4 {[%clk 0:00:15]} 34... Rc8 {[%clk
0:01:04.9]} 35. Re7 {[%clk 0:00:15]} 35... a5 {[%clk 0:01:03.2]} 36. Rb7 {[%clk
0:00:15.1]} 36... Rc6 {[%clk 0:00:52.1]} 37. a4 {[%clk 0:00:14.9]} 37... h5
{[%clk 0:00:51.6]} 38. g3 {[%clk 0:00:15.1]} 38... Kg8 {[%clk 0:00:51.1]} 39.
Ke2 {[%clk 0:00:15.6]} 39... Kf8 {[%clk 0:00:51]} 40. f4 {[%clk 0:00:15.5]}
40... Rc2+ {[%clk 0:00:46.7]} 41. Kf3 {[%clk 0:00:15.4]} 41... Rb2 {[%clk
0:00:47]} 42. g4 {[%clk 0:00:14.5]} 42... h4 {[%clk 0:00:45.5]} 43. Rh7 {[%clk
0:00:13.8]} 43... Rb4 {[%clk 0:00:43]} 44. g5 {[%clk 0:00:13.9]} 44... Rxa4
{[%clk 0:00:42.7]} 45. f5 {[%clk 0:00:13.6]} 45... Ra1 {[%clk 0:00:38]} 46. g6
{[%clk 0:00:14.1]} 46... a4 {[%clk 0:00:36.7]} 47. Kf4 {[%clk 0:00:12.9]} 47...
a3 {[%clk 0:00:36.2]} 48. Kg5 {[%clk 0:00:12.5]} 48... a2 {[%clk 0:00:34.2]} 49.
Kf6 {[%clk 0:00:13]} 49... Ke8 {[%clk 0:00:34.6]} 50. Ra7 {[%clk 0:00:11.8]}
50... h3 {[%clk 0:00:32.8]} 51. g7 {[%clk 0:00:11.7]} 51... Rg1 {[%clk
0:00:31.1]} 52. Rxa2 {[%clk 0:00:12.2]} 52... Kd7 {[%clk 0:00:29.6]} 53. e4
{[%clk 0:00:12.2]} 53... b5 {[%clk 0:00:25.4]} 54. e5 {[%clk 0:00:12.5]} 54...
b4 {[%clk 0:00:25.9]} 55. e6+ {[%clk 0:00:12.2]} 55... Kc7 {[%clk 0:00:26.3]}
56. Rc2+ {[%clk 0:00:12.1]} 56... Kd6 {[%clk 0:00:23.2]} 57. Rd2+ {[%clk
0:00:12.6]} 57... Kc7 {[%clk 0:00:23.1]} 58. e7 {[%clk 0:00:13.5]} 1-0

[Event "*** Titled Tuesday Blitz"]
[Site "Chess.com"]
[Date "2021.03.02"]
[Round "1"]
[White "Chuchofrio1"]
[Black "KNCP_719"]
[Result "0-1"]
[WhiteElo "2293"]
[BlackElo "2599"]
[TimeControl "180+1"]
[EndTime "10:07:43 PST"]
[Termination "KNCP_719 won by checkmate"]

1. e4 {[%clk 0:02:53.7]} 1... Nf6 {[%clk 0:02:58]} 2. e5 {[%clk 0:02:52]} 2...
Nd5 {[%clk 0:02:58.1]} 3. d4 {[%clk 0:02:52.3]} 3... d6 {[%clk 0:02:58.4]} 4. c4
{[%clk 0:02:50.8]} 4... Nb6 {[%clk 0:02:58.6]} 5. exd6 {[%clk 0:02:50.9]} 5...
cxd6 {[%clk 0:02:59.5]} 6. Nc3 {[%clk 0:02:50.3]} 6... g6 {[%clk 0:02:59.8]} 7.
Be3 {[%clk 0:02:39.3]} 7... Bg7 {[%clk 0:03:00]} 8. Qd2 {[%clk 0:02:37.6]} 8...
Nc6 {[%clk 0:02:35.3]} 9. Nf3 {[%clk 0:02:35.7]} 9... Bg4 {[%clk 0:02:28.6]} 10.
b3 {[%clk 0:02:30.4]} 10... O-O {[%clk 0:02:05.9]} 11. Be2 {[%clk 0:02:28.4]}
11... e5 {[%clk 0:01:51.9]} 12. d5 {[%clk 0:02:26.9]} 12... Bxf3 {[%clk
0:01:43.1]} 13. gxf3 {[%clk 0:02:07]} 13... Nd4 {[%clk 0:01:42.6]} 14. Ne4
{[%clk 0:02:04]} 14... f5 {[%clk 0:00:49.7]} 15. Bxd4 {[%clk 0:01:44.3]} 15...
fxe4 {[%clk 0:00:44.5]} 16. Bxb6 {[%clk 0:01:37.8]} 16... Qxb6 {[%clk
0:00:44.5]} 17. fxe4 {[%clk 0:01:36.6]} 17... Qxf2+ {[%clk 0:00:41.6]} 18. Kd1
{[%clk 0:01:36.9]} 18... Qh4 {[%clk 0:00:35.3]} 19. Kc2 {[%clk 0:01:24.7]} 19...
Qxe4+ {[%clk 0:00:26.6]} 20. Bd3 {[%clk 0:01:23.9]} 20... Qd4 {[%clk 0:00:26.8]}
21. Raf1 {[%clk 0:01:21]} 21... e4 {[%clk 0:00:20.4]} 22. Be2 {[%clk 0:01:19.6]}
22... Qb2+ {[%clk 0:00:18.8]} 23. Kd1 {[%clk 0:01:19.3]} 23... Qa1+ {[%clk
0:00:19]} 24. Qc1 {[%clk 0:01:18.8]} 24... Qxa2 {[%clk 0:00:18.5]} 25. Qe3
{[%clk 0:01:06.1]} 25... Qb1+ {[%clk 0:00:16.2]} 26. Kd2 {[%clk 0:01:05.9]}
26... Qb2+ {[%clk 0:00:14.5]} 27. Kd1 {[%clk 0:01:06.2]} 27... Bc3 {[%clk
0:00:13.2]} 28. Qc1 {[%clk 0:01:00.8]} 28... Qxb3+ {[%clk 0:00:13.2]} 29. Qc2
{[%clk 0:01:00]} 29... Qxc2+ {[%clk 0:00:11.6]} 30. Kxc2 {[%clk 0:01:00.9]}
30... Bd4 {[%clk 0:00:11.9]} 31. Rd1 {[%clk 0:01:00.2]} 31... Bc5 {[%clk
0:00:11.9]} 32. h4 {[%clk 0:00:59.3]} 32... Kg7 {[%clk 0:00:11.4]} 33. Bg4
{[%clk 0:00:54.7]} 33... Rf2+ {[%clk 0:00:09.4]} 34. Kc3 {[%clk 0:00:54.5]}
34... a5 {[%clk 0:00:08.5]} 35. h5 {[%clk 0:00:53.8]} 35... g5 {[%clk
0:00:07.2]} 36. h6+ {[%clk 0:00:51.8]} 36... Kf6 {[%clk 0:00:05.5]} 37. Rdf1
{[%clk 0:00:48.5]} 37... Ke5 {[%clk 0:00:03.5]} 38. Rxf2 {[%clk 0:00:36.2]}
38... Bxf2 {[%clk 0:00:04.4]} 39. Rf1 {[%clk 0:00:33.7]} 39... e3 {[%clk
0:00:04.4]} 40. Kd3 {[%clk 0:00:33.9]} 40... Kf4 {[%clk 0:00:04.8]} 41. Bd1
{[%clk 0:00:33]} 41... g4 {[%clk 0:00:05.2]} 42. Rh1 {[%clk 0:00:28.7]} 42... a4
{[%clk 0:00:05.5]} 43. Kc3 {[%clk 0:00:25.6]} 43... a3 {[%clk 0:00:05.7]} 44.
Kc2 {[%clk 0:00:25.2]} 44... a2 {[%clk 0:00:05.9]} 45. Bxg4 {[%clk 0:00:23.6]}
45... Kxg4 {[%clk 0:00:05.7]} 46. Ra1 {[%clk 0:00:22.5]} 46... e2 {[%clk
0:00:05.6]} 47. c5 {[%clk 0:00:21.8]} 47... e1=Q {[%clk 0:00:04.8]} 48. c6
{[%clk 0:00:22.6]} 48... Qe2+ {[%clk 0:00:03.3]} 49. Kb3 {[%clk 0:00:22.5]}
49... bxc6 {[%clk 0:00:04.2]} 50. dxc6 {[%clk 0:00:21.7]} 50... Rb8+ {[%clk
0:00:04.4]} 51. Ka3 {[%clk 0:00:21.5]} 51... Qa6# {[%clk 0:00:04.7]} 0-1

[Event "*** Titled Tuesday Blitz"]
[Site "Chess.com"]
[Date "2021.03.02"]
[Round "1"]
[White "EvgenyT"]
[Black "ChainsOfFantasia"]
[Result "1-0"]
[WhiteElo "2919"]
[BlackElo "2457"]
[TimeControl "180+1"]
[EndTime "10:07:44 PST"]
[Termination "EvgenyT won by resignation"]

1. Nf3 {[%clk 0:03:00.9]} 1... Nf6 {[%clk 0:02:56.4]} 2. c4 {[%clk 0:03:00.4]}
2... e6 {[%clk 0:02:55.1]} 3. Nc3 {[%clk 0:02:59]} 3... d5 {[%clk 0:02:55.3]} 4.
e3 {[%clk 0:02:59.5]} 4... b6 {[%clk 0:02:51.1]} 5. cxd5 {[%clk 0:02:52.9]} 5...
exd5 {[%clk 0:02:50.6]} 6. Bb5+ {[%clk 0:02:49.8]} 6... c6 {[%clk 0:02:49.3]} 7.
Be2 {[%clk 0:02:49.5]} 7... Bd6 {[%clk 0:02:49.6]} 8. O-O {[%clk 0:02:49]} 8...
O-O {[%clk 0:02:48.9]} 9. b3 {[%clk 0:02:48.7]} 9... Re8 {[%clk 0:02:44.9]} 10.
Bb2 {[%clk 0:02:48.2]} 10... Bb7 {[%clk 0:02:40.4]} 11. Rc1 {[%clk 0:02:47.3]}
11... Nbd7 {[%clk 0:02:40.6]} 12. Nd4 {[%clk 0:02:45.4]} 12... Rc8 {[%clk
0:02:38.7]} 13. Nf5 {[%clk 0:02:30.7]} 13... Bf8 {[%clk 0:02:34.4]} 14. f4
{[%clk 0:02:24.8]} 14... Nc5 {[%clk 0:02:22.8]} 15. b4 {[%clk 0:02:01.3]} 15...
Nce4 {[%clk 0:02:11.8]} 16. Nxe4 {[%clk 0:02:00.6]} 16... Nxe4 {[%clk
0:01:57.2]} 17. Bf3 {[%clk 0:02:00]} 17... g6 {[%clk 0:01:52.8]} 18. Bxe4 {[%clk
0:01:47.7]} 18... dxe4 {[%clk 0:01:44.3]} 19. Qg4 {[%clk 0:01:46.6]} 19... h5
{[%clk 0:01:09.1]} 20. Qg3 {[%clk 0:01:43.6]} 20... Qxd2 {[%clk 0:00:46.6]} 21.
Bc3 {[%clk 0:01:21]} 21... Qd7 {[%clk 0:00:46.4]} 22. Nd4 {[%clk 0:01:20]} 22...
Qg4 {[%clk 0:00:45.5]} 23. Qf2 {[%clk 0:01:19.6]} 23... c5 {[%clk 0:00:45.2]}
24. bxc5 {[%clk 0:01:17.8]} 24... Rxc5 {[%clk 0:00:39.2]} 25. h3 {[%clk
0:01:15.8]} 25... Qd7 {[%clk 0:00:39]} 26. f5 {[%clk 0:01:15]} 26... Bg7 {[%clk
0:00:34.1]} 27. Bb2 {[%clk 0:01:10.3]} 27... Rec8 {[%clk 0:00:32.2]} 28. Rcd1
{[%clk 0:01:08.1]} 28... Qe8 {[%clk 0:00:28]} 29. Rd2 {[%clk 0:00:58.9]} 29...
Bxd4 {[%clk 0:00:20.9]} 30. fxg6 {[%clk 0:00:49.7]} 30... fxg6 {[%clk
0:00:14.6]} 31. Bxd4 {[%clk 0:00:47.4]} 31... Rf5 {[%clk 0:00:14.9]} 32. Qe1
{[%clk 0:00:47.3]} 32... Qf7 {[%clk 0:00:12.7]} 33. Rxf5 {[%clk 0:00:45.3]}
33... Qxf5 {[%clk 0:00:13.6]} 34. Rf2 {[%clk 0:00:45.3]} 34... Qg5 {[%clk
0:00:12.2]} 35. Kh2 {[%clk 0:00:31.5]} 35... Bd5 {[%clk 0:00:12.3]} 36. a3
{[%clk 0:00:30.3]} 36... Rf8 {[%clk 0:00:11.5]} 37. Rxf8+ {[%clk 0:00:28.5]}
37... Kxf8 {[%clk 0:00:12.4]} 38. Qb4+ {[%clk 0:00:28.5]} 38... Kg8 {[%clk
0:00:10.4]} 39. Qd6 {[%clk 0:00:28.4]} 39... Qf5 {[%clk 0:00:09.6]} 40. Qb8+
{[%clk 0:00:27.7]} 40... Kf7 {[%clk 0:00:09.9]} 41. Qxa7+ {[%clk 0:00:27.7]}
41... Ke8 {[%clk 0:00:09.2]} 42. Qb8+ {[%clk 0:00:27.5]} 42... Kd7 {[%clk
0:00:08.3]} 43. Bxb6 {[%clk 0:00:26.8]} 43... Qe6 {[%clk 0:00:07.3]} 44. Qd8+
{[%clk 0:00:21.5]} 44... Kc6 {[%clk 0:00:07.2]} 45. Qc7+ {[%clk 0:00:21.8]}
45... Kb5 {[%clk 0:00:07.4]} 46. Qc5+ {[%clk 0:00:21.8]} 46... Ka6 {[%clk
0:00:07.8]} 47. Bc7 {[%clk 0:00:22.2]} 47... Qc6 {[%clk 0:00:06.2]} 48. Qa5+
{[%clk 0:00:21.9]} 48... Kb7 {[%clk 0:00:06.4]} 49. Bf4 {[%clk 0:00:22.3]} 49...
Qb6 {[%clk 0:00:06]} 50. Qxd5+ {[%clk 0:00:21.9]} 1-0